bitfinex/quotes_ETHUSD_20260107
["timestamp","ask_amount","ask_price","bid_price","bid_amount"]
[1767814859415,2.52499198,3142.1,3141.3,2.35398591]
[1767814859727,2.52499198,3142.1,3142.0,0.00100101]
[1767814859932,3.09573954,3142.1,3141.4,5.53043676]
[1767814860134,0.57074756,3142.1,3141.4,2.35398591]
[1767814860442,0.57074756,3142.1,3141.6,0.002]
[1767814860657,0.57074756,3142.1,3141.6,2.35598591]
[1767814860823,0.001,3142.4,3141.6,2.35598591]
[1767814861157,3.18329621,3142.4,3141.6,2.35598591]
[1767814861362,0.001,3142.4,3141.6,2.35598591]
[1767814861828,0.001,3142.4,3141.6,5.53898381]
[1767814862015,0.001,3142.4,3141.7,2.42911375]
[1767814862841,0.001,3142.4,3141.8,2.42911375]
[1767814864125,0.001,3142.4,3141.9,2.42811476]
[1767814865331,0.001,3142.4,3141.9,5.61085241]
[1767814866272,2.41843567,3142.4,3141.6,0.002]
[1767814866557,2.41743567,3142.2,3141.2,2.42911375]
[1767814866767,2.41743567,3142.0,3141.2,2.42911375]
[1767814866921,2.41743567,3142.0,3141.2,5.6125945]
[1767814867450,2.41743567,3142.0,3141.2,2.42911375]
[1767814867640,2.41743567,3142.0,3141.2,5.612565]
[1767814868218,5.6001387,3142.0,3141.2,5.612565]
[1767814868543,8.78284173,3142.0,3141.2,2.42911375]
[1767814868717,5.6001387,3142.0,3141.2,2.42911375]
[1767814869341,2.41743567,3141.9,3141.2,2.42911375]
[1767814869542,0.56001387,3141.8,3141.2,2.42911375]
[1767814869748,2.41743567,3141.9,3141.2,5.61258132]
[1767814869945,2.41743567,3142.1,3141.3,2.42811476]
[1767814870331,5.6000294,3142.1,3141.3,2.42811476]
[1767814871048,2.41743567,3142.0,3141.3,2.42811476]
[1767814872150,5.60018822,3142.0,3141.1,5.61268549]
[1767814872446,0.56000294,3141.9,3141.1,5.61268549]
[1767814872853,0.56000294,3141.9,3141.5,0.002]
[1767814874969,2.41743567,3142.0,3141.5,0.002]
[1767814875167,3.18358925,3142.1,3141.5,0.002]
[1767814875470,3.18359581,3142.1,3141.5,0.002]
[1767814876544,5.60103148,3142.1,3141.5,0.002]
[1767814877470,2.41743567,3142.0,3141.5,0.002]
[1767814877793,2.45021497,3141.9,3141.5,0.002]
[1767814878146,2.45021497,3141.9,3141.0,3.18364859]
[1767814878365,2.45021497,3141.9,3141.1,2.42911375]
[1767814878589,2.41843567,3142.1,3141.3,5.61247998]
[1767814878769,0.001,3142.1,3141.4,2.42911375]
[1767814880179,0.001,3142.1,3141.5,2.42911375]
[1767814882266,0.001,3142.1,3141.6,2.42911375]
[1767814884778,0.001,3142.1,3141.8,2.42911375]
[1767814885475,2.41843567,3142.4,3141.7,6.3659802]
[1767814885682,0.001,3141.8,3141.7,3.1829901]
[1767814885884,0.001,3142.4,3141.8,2.42911375]
[1767814887581,0.001,3142.4,3142.0,2.42911375]
[1767814890792,0.001,3142.4,3142.1,2.42911375]
[1767814891691,0.001,3142.4,3141.7,2.42911375]
[1767814891878,0.001,3142.4,3141.8,2.37922889]
[1767814892076,0.001,3142.4,3141.9,2.37922889]
[1767814892787,0.001,3142.4,3142.0,2.37922889]
[1767814894066,0.001,3142.4,3141.8,3.18282442]
[1767814894366,0.001,3142.4,3141.9,3.18275376]
[1767814894566,0.001,3142.4,3141.8,5.56208122]
[1767814894890,0.001,3142.4,3141.9,3.18277787]
[1767814895583,0.001,3142.4,3142.0,2.37922889]
[1767814896962,0.001,3142.4,3142.1,2.37922889]
[1767814902411,0.001,3142.4,3141.9,5.56196734]
[1767814902807,0.001,3142.4,3142.0,5.56191079]
[1767814903008,0.001,3142.8,3142.2,2.37922889]
[1767814903308,0.001,3142.8,3142.0,2.37922889]
[1767814903309,2.43220508,3142.7,3142.0,2.37922889]
[1767814904413,5.61428361,3142.6,3142.0,2.37922889]
[1767814904706,2.43220508,3142.6,3142.0,2.37922889]
[1767814904913,2.43220508,3142.6,3142.0,5.56191369]
[1767814905213,2.43220508,3142.6,3142.0,2.37922889]
[1767814907310,5.6143178,3142.6,3142.0,2.37922889]
[1767814909319,0.001,3142.3,3142.0,2.37922889]
[1767814910819,0.001,3142.3,3141.8,5.56208982]
[1767814911119,0.001,3142.3,3141.9,2.37922889]
[1767814912522,2.43320508,3142.3,3141.3,5.56260564]
[1767814912898,2.43320508,3142.3,3141.4,2.37922889]
[1767814913211,0.48654102,3142.2,3141.5,2.41106081]
[1767814913521,0.001,3142.3,3141.8,2.37922889]
[1767814914301,0.001,3142.3,3141.9,2.37922889]
[1767814916117,0.001,3142.3,3142.0,2.37922889]
[1767814919930,0.001,3142.3,3141.6,2.37922889]
[1767814920230,0.001,3142.3,3141.5,0.835]
[1767814920231,0.001,3142.3,3141.8,2.37922889]
[1767814920428,2.43220508,3142.2,3141.4,2.37922889]
[1767814920595,2.46498438,3142.2,3141.0,2.37922889]
[1767814920800,2.46498438,3142.2,3141.1,2.37922889]
[1767814921003,2.43220508,3141.9,3141.1,2.37922889]
[1767814921404,2.43220508,3141.9,3141.1,5.5628054]
[1767814921605,2.43220508,3141.9,3141.3,2.21277214]
[1767814923531,2.43220508,3141.9,3141.3,5.39615137]
[1767814923735,0.001,3142.0,3141.4,2.30588042]
[1767814924310,2.25994759,3141.9,3141.2,2.30588042]
[1767814924542,2.25994759,3141.9,3141.1,0.90651636]
[1767814924543,2.25994759,3141.7,3140.7,5.48983218]
[1767814924838,6.36642326,3142.0,3141.0,2.30488143]
[1767814924839,8.62637085,3142.0,3141.0,2.30488143]
[1767814925036,8.62637085,3142.0,3141.1,2.30588042]
[1767814925037,2.25994759,3141.8,3141.1,2.30588042]
[1767814925346,2.25994759,3141.8,3140.8,2.30788042]
[1767814925516,2.25994759,3141.5,3140.8,2.30788042]
[1767814925907,2.25994759,3141.5,3140.8,0.002]
[1767814926109,2.25994759,3141.3,3140.5,0.002]
[1767814926434,2.25994759,3141.3,3140.3,2.30588042]
[1767814926633,2.56944235,3141.2,3140.3,2.30588042]
[1767814926837,2.25994759,3141.2,3140.3,2.30588042]
[1767814927337,0.835,3141.2,3140.6,2.30588042]
[1767814927840,2.25994759,3141.5,3140.5,3.18415347]
[1767814927841,5.44324166,3141.4,3140.7,2.30488143]
[1767814928007,2.25994759,3141.3,3140.5,2.30588042]
[1767814928208,2.25994759,3141.2,3140.5,2.30588042]
[1767814928621,2.25994759,3141.2,3140.6,5.489983]
[1767814929014,5.44324166,3141.4,3140.7,2.30588042]
[1767814929526,2.25994759,3141.6,3140.7,2.30588042]
[1767814929727,6.27774103,3141.9,3140.8,3.18390219]
[1767814929927,6.27774103,3141.9,3140.9,2.30588042]
[1767814930136,6.27774103,3141.9,3141.1,2.30588042]
[1767814930312,2.25994759,3141.8,3141.1,2.30588042]
[1767814932324,5.44285708,3141.8,3141.1,2.30588042]
[1767814932524,0.54428571,3141.7,3141.1,2.30588042]
[1767814932725,0.001,3141.6,3141.1,2.30588042]
[1767814934646,0.001,3141.6,3141.2,2.30588042]
[1767814935520,2.26094759,3141.6,3141.0,2.30588042]
[1767814936255,2.26094759,3141.6,3141.0,5.48957335]
[1767814938023,2.26094759,3141.6,3141.0,2.30588042]
[1767814938221,2.80534279,3141.6,3140.9,3.18376837]
[1767814938429,2.80534279,3141.6,3140.9,5.48964879]
[1767814939354,2.26094759,3141.6,3140.9,5.48964879]
[1767814940353,2.26094759,3141.6,3141.0,2.30588042]
[1767814940750,0.001,3141.6,3141.0,2.30588042]
[1767814941461,0.001,3141.6,3141.1,5.52031551]
[1767814941753,0.001,3141.6,3141.2,2.30588042]
[1767814942526,0.001,3141.6,3141.3,2.30588042]
[1767814943470,0.001,3142.0,3141.6,2.30588042]
[1767814946142,2.26094759,3142.0,3141.3,2.30588042]
[1767814948159,0.001,3142.0,3141.4,2.30588042]
[1767814948340,0.001,3142.0,3141.6,2.30588042]
[1767814950775,0.001,3142.0,3141.6,2.30468674]
[1767814950958,0.001,3142.0,3141.7,2.30588042]
[1767814952487,0.001,3142.0,3141.5,2.18312612]
[1767814952688,0.001,3142.0,3141.6,2.18312612]
[1767814953063,0.001,3142.0,3141.8,2.18312612]
[1767814956778,4.01708754,3142.6,3141.8,2.18312612]
[1767814956779,3.18128388,3144.4,3142.7,2.18312612]
[1767814956983,2.11724876,3144.3,3142.9,2.16259654]
[1767814957275,2.11724876,3144.3,3143.1,2.18312612]
[1767814958279,2.11724876,3144.1,3143.3,2.18312612]
[1767814960568,2.11724876,3144.1,3143.3,5.36441084]
[1767814960794,0.52977257,3144.0,3143.3,3.18128472]
[1767814960997,0.52977257,3144.0,3143.3,5.36441084]
[1767814961585,2.11724876,3144.1,3143.3,5.36441084]
[1767814962387,2.11724876,3144.0,3143.0,2.18312612]
[1767814962587,2.11724876,3143.9,3143.1,3.18149758]
[1767814963191,2.11724876,3143.9,3143.1,2.18312612]
[1767814964691,5.29808667,3143.9,3143.1,2.18312612]
[1767814964897,2.11724876,3143.8,3143.1,2.18312612]
[1767814967099,2.11724876,3143.8,3143.1,5.3646854]
[1767814968714,0.001,3143.5,3143.1,5.3646854]
[1767814969205,2.11724876,3144.5,3143.5,2.18312612]
[1767814969372,2.11724876,3144.3,3143.2,2.18312612]
[1767814969574,2.11724876,3144.1,3143.2,2.18312612]
[1767814971208,5.29789361,3144.1,3143.2,5.36454804]
[1767814971411,5.29789361,3144.1,3143.3,2.18312612]
[1767814972210,2.11724876,3144.1,3143.3,2.18312612]
[1767814973389,5.29785722,3144.1,3143.4,2.18312612]
[1767814974825,8.47846568,3144.1,3143.4,2.18312612]
[1767814975019,2.11724876,3144.0,3143.0,3.18166505]
[1767814975329,2.11724876,3143.8,3143.1,2.18312612]
[1767814976203,5.2980115,3143.9,3143.1,2.18312612]
[1767814976386,2.11724876,3143.8,3143.1,2.18312612]
[1767814976717,2.11724876,3143.8,3143.1,5.36469462]
[1767814978213,2.11724876,3143.8,3143.1,2.18312612]
[1767814979022,2.11724876,3143.8,3143.1,5.36467085]
[1767814980528,2.11724876,3143.8,3143.4,0.00100101]
[1767814980929,2.64804991,3143.8,3143.4,0.00100101]
[1767814981810,5.82893646,3143.8,3143.4,0.00100101]
[1767814982005,5.29913531,3143.8,3143.4,0.00100101]
[1767814982338,2.11824876,3143.8,3143.4,0.00100101]
[1767814982505,5.29912403,3143.8,3143.4,0.00100101]
[1767814982836,2.17210408,3143.7,3143.4,0.00100101]
[1767814983338,2.70749439,3143.7,3143.1,2.18312612]
[1767814983508,2.17210408,3143.7,3143.1,5.36468372]
[1767814984408,2.17210408,3143.7,3143.1,5.36469695]
[1767814984617,2.17210408,3143.7,3143.1,2.18312612]
[1767814985234,2.17210408,3143.7,3143.1,5.36468198]
[1767814985426,0.001,3143.8,3143.2,2.14228234]
[1767814988141,0.001,3143.8,3143.2,5.32370639]
[1767814989042,0.001,3143.8,3143.2,2.14228234]
[1767814990245,2.17310408,3143.8,3143.2,2.14228234]
[1767814990623,2.17310408,3143.8,3143.0,2.14428234]
[1767814991047,5.35398928,3143.8,3143.1,2.14228234]
[1767814992242,5.35398928,3143.8,3143.1,5.32385354]
[1767814992442,5.35398928,3143.8,3143.1,2.14228234]
[1767814992825,0.001,3143.5,3143.1,2.14228234]
[1767814993025,0.001,3143.5,3143.1,5.32384575]
[1767814993451,0.001,3143.5,3143.1,2.14228234]
[1767814994114,0.001,3143.5,3143.1,5.32384714]
[1767814995142,0.001,3143.5,3143.1,5.32385172]
[1767814995447,0.001,3143.5,3143.1,2.14228234]
[1767814995626,0.001,3143.5,3143.1,5.32384142]
[1767814996039,0.001,3143.5,3143.1,2.14228234]
[1767814997532,0.001,3143.5,3143.1,5.32385094]
[1767814997919,0.001,3143.5,3143.1,2.14228234]
[1767815000051,2.17310408,3143.5,3143.0,0.002]
[1767815000252,2.38941449,3143.4,3142.7,5.3242087]
[1767815000422,5.57071811,3143.4,3142.7,2.14228234]
[1767815000627,2.17210408,3143.3,3142.7,2.14228234]
[1767815002327,0.001,3143.5,3142.8,2.14228234]
[1767815003257,0.001,3143.5,3142.8,5.32410385]
[1767815003458,0.001,3143.5,3142.9,2.14228234]
[1767815005830,0.001,3143.5,3143.0,0.002]
[1767815006137,0.001,3143.5,3143.0,2.14428234]
[1767815011766,0.001,3143.5,3143.1,2.14228234]
[1767815011966,2.13561176,3143.5,3143.0,0.002]
[1767815013070,5.31684088,3143.5,3143.0,0.002]
[1767815013366,2.16739106,3143.4,3143.0,0.002]
[1767815013667,2.16739106,3143.4,3142.6,0.002]
[1767815013668,2.13461176,3143.4,3142.6,0.002]
[1767815013878,2.13461176,3143.4,3142.6,5.34529347]
[1767815014979,2.13461176,3143.4,3142.6,2.16322011]
[1767815015279,5.31595467,3143.4,3142.6,5.34529482]
[1767815015442,8.49729758,3143.4,3142.7,2.16122011]
[1767815015875,5.31595467,3143.4,3142.7,2.16122011]
[1767815016680,2.13461176,3143.3,3142.7,2.16122011]
[1767815017185,5.31600945,3143.3,3142.7,2.16122011]
[1767815017769,2.13461176,3143.3,3142.7,2.16122011]
[1767815018465,2.13461176,3143.3,3143.0,0.002]
[1767815018671,0.001,3143.1,3143.0,1.96e-06]
[1767815025862,0.001,3143.1,3143.0,2.16122207]
[1767815026658,0.001,3143.1,3143.0,1.96e-06]
[1767815032951,0.001,3143.1,3143.0,2.16122207]
[1767815033271,0.001,3143.5,3143.1,2.16122011]
[1767815033476,2.97061176,3144.4,3143.7,2.16122011]
[1767815033657,2.13461176,3144.3,3143.7,2.16122011]
[1767815034558,5.31496986,3144.3,3143.7,2.16122011]
[1767815034756,8.49532796,3144.3,3143.7,2.16122011]
[1767815034984,8.49532796,3144.3,3143.3,3.1813417]
[1767815034985,2.13461176,3144.2,3143.3,2.16122011]
[1767815035188,2.13461176,3144.2,3143.4,2.16122011]
[1767815036777,3.18056041,3144.1,3143.4,2.16122011]
[1767815040690,2.97061176,3144.4,3143.5,2.16122011]
[1767815040873,2.13461176,3144.3,3143.5,2.16122011]
[1767815041701,2.13461176,3144.3,3143.3,2.82063119]
[1767815041702,2.16739106,3144.3,3143.3,2.82063119]
[1767815041988,0.001,3143.8,3143.4,2.00360632]
[1767815043297,0.001,3143.8,3143.2,2.00360632]
[1767815043507,2.13026436,3143.8,3142.5,2.00360632]
[1767815043802,2.12926436,3143.6,3142.6,2.00560632]
[1767815044363,2.12926436,3143.6,3142.7,2.00360632]
[1767815044589,5.31037,3143.6,3142.7,2.00360632]
[1767815044995,2.12926436,3143.5,3142.7,2.00360632]
[1767815046896,5.31053304,3143.4,3142.7,2.00360632]
[1767815047395,2.12926436,3143.3,3142.7,2.00360632]
[1767815049570,5.31065238,3143.3,3142.7,2.00360632]
[1767815050079,2.12926436,3143.3,3142.7,2.00360632]
[1767815050387,5.31064747,3143.3,3142.7,2.00360632]
[1767815050585,2.12926436,3143.3,3142.7,2.00360632]
[1767815051188,2.12926436,3143.3,3142.7,5.18557896]
[1767815051391,5.31046875,3143.5,3142.8,2.00360632]
[1767815053511,5.31046875,3143.5,3143.0,0.002]
[1767815053818,0.001,3143.2,3143.0,0.002]
[1767815075435,0.001,3143.2,3143.0,1.93151951]
[1767815079054,0.001,3143.2,3143.0,0.002]
[1767815079230,0.001,3143.2,3143.0,1.93151951]
[1767815084226,0.001,3143.2,3143.1,1.92951951]
[1767815084671,0.001,3143.8,3143.2,1.92951951]
[1767815085055,2.04910799,3143.8,3143.0,8.8061504]
[1767815085228,0.001,3143.8,3143.1,1.92951951]
[1767815086352,0.001,3143.8,3143.3,1.92951951]
[1767815086558,0.001,3143.8,3143.4,0.51109906]
[1767815086928,0.001,3143.8,3143.5,1.92951951]
[1767815089959,0.001,3143.8,3143.4,0.51109906]
[1767815090858,2.04910799,3143.8,3143.1,5.11104275]
[1767815092458,2.04910799,3143.8,3143.2,3.18146873]
[1767815092862,2.04910799,3143.8,3143.1,5.11099999]
[1767815093243,2.04910799,3143.8,3143.2,1.92951951]
[1767815093562,2.04910799,3143.8,3143.2,2.8101184]
[1767815096562,2.04910799,3143.8,3143.2,5.99157971]
[1767815099268,2.04910799,3143.8,3143.2,2.8101184]
[1767815099456,2.04810799,3143.7,3143.0,1.93151951]
[1767815099660,2.04810799,3143.7,3143.0,5.11311285]
[1767815100064,2.04810799,3143.7,3143.1,1.92951951]
[1767815100369,0.001,3143.8,3143.3,1.92951951]
[1767815100742,0.001,3143.5,3143.3,1.92951951]
[1767815103990,0.001,3143.5,3143.0,0.002]
[1767815104284,0.001,3143.5,3143.1,2.06318267]
[1767815104455,0.001,3143.5,3143.2,5.76928384]
[1767815104660,0.001,3143.5,3143.3,2.06318267]
[1767815106293,0.001,3143.5,3143.2,0.52468368]
[1767815107091,0.001,3143.5,3143.2,3.7061508]
[1767815107286,0.001,3143.8,3143.3,5.2445492]
[1767815107596,0.001,3144.4,3144.0,2.06318267]
[1767815107770,1.90890734,3145.4,3144.4,2.06318267]
[1767815107970,1.90890734,3145.3,3144.4,2.06318267]
[1767815108160,1.90890734,3145.3,3144.4,2.26950094]
[1767815108356,1.90890734,3145.3,3144.4,0.20631827]
[1767815108588,1.90890734,3145.3,3144.2,2.06318267]
[1767815109657,1.90890734,3145.2,3144.2,2.06318267]
[1767815110286,1.90890734,3145.2,3144.2,5.24361433]
[1767815110486,1.90890734,3145.2,3144.3,2.06318267]
[1767815110989,1.90890734,3144.9,3143.6,2.06318267]
[1767815111189,1.90890734,3144.6,3143.5,2.06318267]
[1767815111492,1.90890734,3144.6,3143.6,5.24419111]
[1767815111694,1.90890734,3144.4,3143.7,2.06318267]
[1767815112393,1.90890734,3144.6,3143.7,2.06318267]
[1767815113993,3.18001374,3144.7,3143.7,2.06318267]
[1767815113994,5.08906316,3144.5,3143.7,2.06318267]
[1767815114189,1.90890734,3144.4,3143.7,2.06318267]
[1767815114399,1.94168664,3144.3,3143.6,0.002]
[1767815114698,1.94168664,3144.3,3143.3,0.002]
[1767815115490,1.90890734,3144.2,3143.3,0.002]
[1767815115689,1.90890734,3144.0,3143.3,0.002]
[1767815116097,5.08967008,3143.9,3143.3,0.002]
[1767815116389,1.90890734,3143.9,3143.3,0.002]
[1767815118572,5.08967076,3143.9,3143.3,0.002]
[1767815119696,1.90890734,3143.9,3143.3,0.002]
[1767815119999,5.08969324,3143.9,3143.3,0.002]
[1767815121179,1.90890734,3143.8,3143.0,2.06518267]
[1767815121383,1.90890734,3143.7,3143.0,0.002]
[1767815121604,1.90890734,3143.7,3143.0,2.02e-06]
[1767815121800,1.90890734,3143.5,3143.0,2.02e-06]
[1767815123200,1.90890734,3143.3,3143.0,2.02e-06]
[1767815124368,5.09011786,3143.5,3143.0,2.02e-06]
[1767815125604,5.09111786,3143.5,3143.0,2.02e-06]
[1767815128678,8.30510768,3143.5,3143.0,2.02e-06]
[1767815128880,8.27232838,3143.5,3143.0,2.02e-06]
[1767815130099,1.90890734,3143.4,3143.0,2.02e-06]
[1767815131403,5.0902384,3143.4,3143.0,2.02e-06]
[1767815131589,1.90890734,3143.4,3143.0,2.02e-06]
[1767815132780,5.09018371,3143.4,3143.0,2.02e-06]
[1767815133301,2.03232923,3143.3,3143.0,2.02e-06]
[1767815133502,5.21376576,3143.3,3143.0,2.02e-06]
[1767815134013,2.06510853,3143.2,3142.6,0.00100101]
[1767815134176,2.03232923,3143.2,3142.6,2.05395833]
[1767815134372,5.21364298,3143.4,3142.6,2.05395833]
[1767815134573,0.5214643,3143.3,3142.6,2.05395833]
[1767815134984,0.5214643,3143.3,3142.6,5.23601835]
[1767815135307,0.001,3143.5,3142.8,2.05295732]
[1767815135505,5.21278848,3144.2,3143.4,2.05295732]
[1767815136711,2.03232923,3145.2,3143.8,2.05295732]
[1767815136911,2.03232923,3145.2,3143.7,4.97336688]
[1767815136912,3.17958365,3145.1,3144.0,2.05295732]
[1767815137076,2.03232923,3145.2,3144.0,2.05295732]
[1767815137480,3.17936716,3145.3,3143.9,0.835]
[1767815137481,8.39082099,3145.4,3144.2,2.05295732]
[1767815137782,2.03232923,3145.2,3144.3,2.05295732]
[1767815138926,5.21181563,3145.2,3144.4,2.05295732]
[1767815142422,5.21180501,3145.2,3144.5,2.05295732]
[1767815142617,2.03332923,3144.9,3144.3,3.18032277]
[1767815142818,2.03332923,3144.9,3144.3,3.89980845]
[1767815143748,0.001,3144.9,3144.4,2.05295732]
[1767815146027,0.001,3144.9,3144.3,0.71948568]
[1767815146518,0.001,3144.9,3144.3,2.772443]
[1767815147126,0.001,3144.9,3144.4,2.05295732]
[1767815148231,0.001,3144.9,3144.4,2.64823729]
[1767815149135,0.001,3144.6,3144.4,2.64823729]
[1767815150411,0.001,3144.6,3144.1,4.01454603]
[1767815150412,2.03332923,3144.6,3143.8,2.05295732]
[1767815151705,2.03332923,3144.6,3143.6,5.23401178]
[1767815152027,2.03332923,3144.6,3142.3,3.18234698]
[1767815152028,2.03332923,3144.6,3143.5,2.05295732]
[1767815152222,2.03232923,3144.4,3143.5,2.05295732]
[1767815152409,2.03232923,3144.4,3143.3,2.05295732]
[1767815152747,2.03232923,3144.2,3143.4,2.05295732]
[1767815152911,2.03232923,3144.2,3143.5,2.05295732]
[1767815154843,5.21281266,3144.2,3143.5,2.05295732]
[1767815156039,2.03232923,3144.2,3143.5,2.05295732]
[1767815156334,5.21280291,3144.2,3143.5,2.05295732]
[1767815156546,0.52128029,3144.1,3143.5,2.05295732]
[1767815156838,2.03232923,3144.2,3143.6,2.05295732]
[1767815157739,3.18037658,3144.3,3143.6,2.05295732]
[1767815157943,2.03232923,3144.3,3143.6,2.05295732]
[1767815158948,6.04654267,3144.5,3143.7,2.05295732]
[1767815159115,0.001,3144.6,3143.8,2.05295732]
[1767815160755,0.001,3144.3,3143.8,2.05295732]
[1767815160918,0.001,3144.6,3143.8,2.05295732]
[1767815161114,2.03332923,3144.9,3144.2,2.05295732]
[1767815161359,2.03332923,3144.9,3144.3,0.20529573]
[1767815161854,2.03332923,3144.9,3144.2,0.834]
[1767815162518,2.03332923,3144.9,3144.1,0.834]
[1767815163240,2.03332923,3144.9,3144.2,3.18045925]
[1767815165218,0.001,3144.9,3144.3,1.9191323]
[1767815167441,0.001,3144.9,3144.4,1.9191323]
[1767815167751,0.001,3144.9,3144.3,3.18030232]
[1767815167752,0.001,3144.9,3144.6,1.91813331]
[1767815167962,5.13590455,3145.6,3144.6,1.9191323]
[1767815168447,1.95684398,3145.5,3144.6,1.9191323]
[1767815169050,5.13599412,3145.5,3144.8,1.9191323]
[1767815169218,1.95684398,3145.6,3144.8,1.9191323]
[1767815169421,1.95684398,3145.6,3144.8,2.42904089]
[1767815170330,1.95684398,3145.6,3144.9,1.9191323]
[1767815171638,0.834,3145.9,3145.0,1.9191323]
[1767815171639,2.79084398,3145.9,3145.0,1.9191323]
[1767815171838,5.96959714,3145.9,3145.0,1.9191323]
[1767815172034,1.95684398,3145.8,3145.1,2.42901817]
[1767815172730,0.002,3145.3,3145.1,2.42901817]
[1767815176547,0.002,3145.3,3144.9,1.9191323]
[1767815177349,1.95884398,3145.6,3144.9,1.9191323]
[1767815179334,5.13789321,3145.6,3144.9,1.9191323]
[1767815179660,0.002,3145.6,3145.0,1.9191323]
[1767815180253,0.02489762,3471.5,3145.5,1.91813331]
[1767815180254,1.95684398,3146.5,3145.5,1.91813331]
[1767815180444,1.95684398,3146.3,3145.5,1.91813331]
[1767815180651,3.17823544,3146.4,3145.5,1.91813331]
[1767815181451,2.79284398,3146.6,3145.7,1.9191323]
[1767815182060,1.95884398,3146.6,3145.7,1.9191323]
[1767815182251,1.95884398,3146.6,3145.9,1.9191323]
[1767815183361,3.17813443,3146.5,3145.9,1.9191323]
[1767815184637,0.002,3146.1,3145.9,1.9191323]
[1767815186759,0.002,3146.1,3145.2,1.9191323]
[1767815186760,1.95884398,3146.1,3145.2,1.9191323]
[1767815187063,2.15472838,3146.1,3145.2,1.9191323]
[1767815187763,2.15472838,3146.1,3145.3,1.9191323]
[1767815187764,5.33335088,3146.1,3145.3,1.9191323]
[1767815188793,8.51197338,3146.1,3145.3,1.9191323]
[1767815188967,1.95684398,3146.0,3145.3,1.9191323]
[1767815189335,6.5551294,3146.1,3144.6,0.001]
[1767815189336,1.95684398,3145.8,3144.7,1.9191323]
[1767815189665,1.95684398,3145.6,3144.8,1.9191323]
[1767815189861,1.95684398,3145.6,3144.9,1.9191323]
[1767815190442,5.13589113,3145.6,3144.9,1.9191323]
[1767815190649,1.95684398,3145.6,3144.9,1.9191323]
[1767815190857,5.13593801,3145.6,3144.9,1.9191323]
[1767815191059,5.66609681,3145.6,3144.9,1.9191323]
[1767815191767,1.95684398,3145.5,3144.6,0.001]
[1767815191989,2.08613286,3145.3,3142.9,3.1816784]
[1767815192140,2.08613286,3145.3,3143.9,1.90172106]
[1767815193666,2.08613286,3145.3,3143.7,5.08267474]
[1767815193875,2.08613286,3144.9,3143.7,1.90172106]
[1767815194170,2.08613286,3144.8,3143.7,1.90172106]
[1767815195170,2.08613286,3144.8,3143.7,3.18096088]
[1767815195553,2.08613286,3144.8,3143.6,3.18103803]
[1767815195753,2.08613286,3144.6,3143.6,3.18103803]
[1767815196076,2.08613286,3144.5,3143.6,3.18106629]
[1767815196968,2.08613286,3144.5,3143.7,1.90172106]
[1767815198146,3.18015333,3144.6,3143.8,1.90172106]
[1767815201370,3.18015333,3144.6,3143.9,1.90072207]
[1767815201549,3.47201157,3144.7,3143.9,1.90072207]
[1767815201750,3.17966117,3145.0,3144.1,1.90172106]
[1767815201977,3.17944804,3145.2,3144.3,1.90172106]
[1767815202176,6.35889608,3145.2,3144.3,1.90172106]
[1767815202385,5.26551876,3145.3,3144.3,1.90172106]
[1767815202545,3.17932534,3145.4,3144.5,1.90172106]
[1767815202945,3.17932534,3145.4,3144.7,1.90172106]
[1767815203552,5.2654582,3145.4,3144.7,1.90172106]
[1767815204776,5.2654582,3145.4,3144.5,5.08182833]
[1767815205965,2.08613286,3145.4,3144.6,3.18004447]
[1767815206175,5.2654151,3145.4,3144.6,1.90172106]
[1767815207777,2.08613286,3145.3,3144.6,1.90172106]
[1767815207967,5.26551196,3145.3,3144.6,1.90172106]
[1767815208167,2.08613286,3145.2,3144.4,1.90172106]
[1767815208794,2.08713286,3145.1,3144.4,1.90172106]
[1767815209082,0.001,3145.1,3144.4,1.90172106]
[1767815209285,0.001,3145.1,3144.5,1.90172106]
[1767815209575,0.001,3145.1,3144.3,1.90172106]
[1767815209576,2.08713286,3145.1,3144.3,1.90172106]
[1767815209779,2.08713286,3145.1,3144.3,0.834]
[1767815209946,5.26578309,3145.0,3144.3,0.834]
[1767815210153,5.26578309,3145.0,3144.3,2.73572106]
[1767815210463,2.08613286,3145.0,3144.3,5.67368609]
[1767815210976,2.08613286,3145.0,3144.4,1.90172106]
[1767815211373,0.001,3145.1,3144.6,1.90172106]
[1767815211954,0.001,3145.1,3144.3,3.77196503]
[1767815212156,3.18056972,3145.1,3144.4,1.90172106]
[1767815212754,0.001,3145.1,3144.4,2.55248967]
[1767815213259,0.001,3145.1,3144.5,1.90172106]
[1767815213466,2.08713286,3145.1,3144.4,0.65076861]
[1767815213686,2.08713286,3145.1,3144.4,2.55248967]
[1767815213886,2.08713286,3145.1,3144.5,1.90172106]
[1767815215083,2.08713286,3145.1,3144.5,2.53415634]
[1767815217081,0.001,3145.1,3144.6,1.90172106]
[1767815217993,2.08613286,3145.5,3144.8,1.90172106]
[1767815218163,5.26524518,3145.6,3144.8,1.90172106]
[1767815218359,2.08613286,3145.5,3144.8,1.90172106]
[1767815218673,2.08613286,3145.5,3144.8,2.40989806]
[1767815220188,2.08613286,3145.5,3144.8,5.58974563]
[1767815220363,5.26529189,3145.5,3144.8,2.40989806]
[1767815221301,2.08613286,3145.5,3144.8,2.40989806]
[1767815221898,2.08613286,3145.5,3144.9,2.00413477]
[1767815222126,0.002,3145.2,3144.9,0.60101261]
[1767815222407,1.9510799,3145.0,3143.6,1.97233726]
[1767815222695,1.9510799,3145.0,3143.9,1.97433726]
[1767815222998,1.9510799,3145.0,3144.1,3.18050591]
[1767815223197,1.9510799,3145.0,3144.2,2.30139341]
[1767815223366,1.9510799,3145.0,3144.4,3.18018887]
[1767815223693,0.002,3145.2,3144.5,1.97233726]
[1767815223694,1.9530799,3145.2,3144.5,1.97233726]
[1767815224269,1.9530799,3145.2,3144.5,5.1524738]
[1767815225003,5.13253057,3145.2,3144.5,1.97233726]
[1767815225170,1.9530799,3145.2,3144.5,1.97233726]
[1767815225499,1.9530799,3145.2,3144.5,5.15248305]
[1767815225995,1.9530799,3145.2,3144.5,1.97233726]
[1767815226803,1.9530799,3145.2,3144.5,5.15248543]
[1767815227802,1.9530799,3145.2,3144.6,1.97233726]
[1767815228304,1.9530799,3145.2,3144.7,0.03179953]
[1767815230414,0.002,3145.2,3144.7,2.00413679]
[1767815231110,0.002,3145.2,3144.8,1.97233726]
[1767815232607,0.002,3145.2,3143.9,3.1826907]
[1767815232608,1.9530799,3145.2,3144.4,1.97139577]
[1767815232916,1.9858592,3145.2,3144.4,1.97139577]
[1767815233211,3.17954913,3145.1,3144.4,1.97139577]
[1767815233506,1.9510799,3145.0,3144.1,1.97233726]